bitfinex-derivatives/quotes_ETHF0:USTF0_20260312
["timestamp","ask_amount","ask_price","bid_price","bid_amount"]
[1773332879484,0.58519489,2066.1,2065.3,0.54298814]
[1773332879979,0.58519489,2066.0,2065.3,0.54298814]
[1773332880384,0.58519489,2066.4,2065.3,0.54298814]
[1773332880780,0.58519489,2066.3,2065.3,0.54298814]
[1773332881978,0.58519489,2066.0,2065.3,0.54298814]
[1773332882386,0.58519489,2065.5,2064.4,0.54298814]
[1773332882586,0.58519489,2065.1,2064.2,0.54298814]
[1773332883387,0.58519489,2064.9,2064.2,0.54836559]
[1773332885391,0.58988688,2065.1,2064.2,0.54836559]
[1773332885588,0.00469199,2065.1,2064.3,0.54298814]
[1773332885990,0.58988688,2065.1,2064.3,0.54298814]
[1773332887785,0.00469199,2065.1,2064.4,0.54298814]
[1773332887988,0.58519489,2065.5,2064.5,0.54298814]
[1773332888488,0.58519489,2065.9,2064.7,0.78697814]
[1773332888695,0.58519489,2065.9,2064.9,0.54298814]
[1773332888898,0.58864921,2065.9,2064.9,0.54298814]
[1773332890293,0.58864921,2065.9,2065.0,0.54298814]
[1773332890495,0.58864921,2065.9,2064.5,0.54298814]
[1773332890795,0.58864921,2065.9,2064.7,0.54298814]
[1773332892302,0.58864921,2065.9,2064.9,0.54298814]
[1773332892701,0.58864921,2065.9,2065.0,0.54298814]
[1773332893297,0.58519489,2065.7,2065.0,0.54298814]
[1773332895000,0.58864921,2065.9,2065.0,0.54298814]
[1773332897804,0.58519489,2065.8,2065.0,0.54298814]
[1773332898406,0.58519489,2065.6,2064.8,0.54298814]
[1773332898608,0.58519489,2065.4,2064.8,0.54298814]
[1773332899003,0.58519489,2065.4,2064.6,0.54298814]
[1773332899208,0.58519489,2065.6,2064.7,0.54298814]
[1773332900812,0.59256308,2065.8,2064.7,0.54298814]
[1773332902006,0.00345432,2065.9,2064.9,3.61862761]
[1773332902208,0.00345432,2065.9,2065.1,0.80882073]
[1773332902405,0.00345432,2065.9,2065.4,0.55874073]
[1773332902612,0.00345432,2065.9,2065.5,0.80819073]
[1773332902915,0.00345432,2065.9,2065.6,0.55874073]
[1773332903102,0.00345432,2065.9,2065.1,0.55874073]
[1773332903103,0.5960174,2065.9,2065.1,0.55874073]
[1773332905402,0.5960174,2065.9,2064.9,6.89174073]
[1773332905608,0.00345432,2065.9,2065.3,0.55874073]
[1773332906008,0.59256308,2066.2,2065.3,0.55874073]
[1773332907111,0.59757299,2066.2,2065.3,0.55874073]
[1773332908608,0.59757299,2066.2,2065.4,0.55874073]
[1773332908812,0.59757299,2066.2,2065.5,0.55874073]
[1773332909211,0.59757299,2066.2,2065.6,0.55874073]
[1773332911819,0.59757299,2066.2,2065.4,0.55874073]
[1773332912412,0.59757299,2066.2,2065.2,0.55874073]
[1773332913021,0.59256308,2065.7,2064.8,0.55874073]
[1773332914011,0.59256308,2065.5,2064.8,0.55874073]
[1773332914917,0.59256308,2065.9,2064.8,0.55874073]
[1773332918319,0.59256308,2065.9,2065.0,0.55874073]
[1773332919816,0.59256308,2066.1,2065.0,0.55874073]
[1773332920322,0.59256308,2066.1,2065.3,0.55874073]
[1773332920510,0.59256308,2066.1,2065.5,0.80194073]
[1773332920714,0.59256308,2066.1,2065.7,0.55874073]
[1773332921018,0.59256308,2066.1,2065.7,0.56223066]
[1773332922322,0.59757299,2066.2,2065.7,0.00348993]
[1773332922712,0.59757299,2066.2,2065.7,0.58662469]
[1773332922918,0.00500991,2066.2,2065.7,0.58662469]
[1773332923613,0.59027118,2066.2,2065.7,0.58662469]
[1773332924325,0.58526127,2066.0,2065.3,6.91613476]
[1773332924518,0.58526127,2066.0,2065.3,0.58313476]
[1773332925418,0.58526127,2066.0,2065.3,0.58933341]
[1773332926018,0.58526127,2066.0,2065.3,0.00619865]
[1773332926225,0.58526127,2065.6,2064.9,0.58313476]
[1773332926718,0.58526127,2065.8,2064.9,0.58313476]
[1773332927423,0.58526127,2065.8,2064.9,0.58809718]
[1773332927826,0.82726127,2065.8,2064.9,0.58809718]
[1773332928020,0.58526127,2065.7,2064.9,0.58809718]
[1773332938235,0.24204,2065.4,2064.6,0.55391218]
[1773332938537,0.53731951,2064.9,2064.1,0.55391218]
[1773332939337,0.53731951,2064.9,2064.1,0.55826531]
[1773332940843,0.53731951,2064.9,2064.2,0.55391218]
[1773332941544,0.53731951,2065.3,2064.2,0.55391218]
[1773332941735,0.53731951,2065.2,2064.2,0.55391218]
[1773332941941,0.53731951,2065.4,2064.3,0.55391218]
[1773332942244,0.53731951,2065.8,2064.3,0.55391218]
[1773332942645,0.53731951,2065.8,2064.5,0.55391218]
[1773332942837,10.19035423,2066.0,2064.5,0.55391218]
[1773332942838,0.53731951,2065.6,2064.5,0.55391218]
[1773332943044,0.53731951,2065.6,2064.7,0.55391218]
[1773332943740,0.53731951,2065.2,2064.5,0.55391218]
[1773332944645,0.53731951,2065.2,2064.2,0.55391218]
[1773332944845,0.53731951,2065.2,2064.3,0.55391218]
[1773332945345,0.53731951,2065.0,2064.3,0.55391218]
[1773332945541,0.53731951,2064.8,2064.1,0.55826531]
[1773332945740,0.53731951,2064.8,2064.1,0.00435313]
[1773332946741,0.53731951,2064.6,2064.1,0.00435313]
[1773332946938,0.54290304,2064.6,2064.1,0.00435313]
[1773332948145,0.53731951,2064.4,2063.7,0.55391218]
[1773332948338,0.00558353,2064.6,2063.7,0.55391218]
[1773332948737,0.53731951,2064.5,2063.6,0.55391218]
[1773332948942,0.53731951,2064.5,2063.6,0.55996466]
[1773332951344,0.00558353,2064.6,2063.7,0.55391218]
[1773332951540,0.54290304,2064.6,2063.9,0.55391218]
[1773332952146,0.53731951,2064.4,2063.7,0.55391218]
[1773332952448,0.53731951,2064.4,2063.6,0.55996466]
[1773332953448,0.53731951,2064.2,2063.6,0.00605248]
[1773332953848,0.53731951,2064.2,2063.6,0.55996466]
[1773332958754,0.53731951,2064.4,2063.6,0.55996466]
[1773332961956,0.56517567,2064.6,2063.6,0.55996466]
[1773332964953,0.55959214,2064.4,2063.6,0.55996466]
[1773332965558,0.56517567,2064.6,2063.6,0.55996466]
[1773332966960,0.56517567,2064.6,2063.9,0.83515162]
[1773332967158,0.56517567,2064.6,2063.6,0.00605248]
[1773332967159,0.56517567,2064.6,2064.0,0.83435162]
[1773332967455,0.56517567,2064.6,2064.0,0.58763162]
[1773332968967,0.00558353,2064.6,2064.0,0.58763162]
[1773332969262,0.55959214,2064.5,2063.8,0.58763162]
[1773332969466,0.55959214,2064.3,2063.8,0.58763162]
[1773332971467,0.55959214,2064.5,2063.8,0.58763162]
[1773332972363,0.00558353,2064.6,2063.8,0.58763162]
[1773332972861,0.56517567,2064.6,2063.8,0.58763162]
[1773332973264,0.00558353,2064.6,2063.8,0.58763162]
[1773332973657,0.56517567,2064.6,2063.8,0.58763162]
[1773332973861,0.00558353,2064.6,2063.8,0.58763162]
[1773332974062,0.00558353,2064.6,2063.7,6.57823]
[1773332974063,0.00558353,2064.6,2063.9,0.83073162]
[1773332974262,0.00558353,2064.6,2064.0,0.58763162]
[1773332974463,0.56517567,2064.6,2064.1,0.58763162]
[1773332974768,0.56517567,2064.6,2064.2,0.58763162]
[1773332975067,0.00558353,2064.6,2064.2,0.58763162]
[1773332975463,0.56517567,2064.6,2064.2,0.58763162]
[1773332975669,0.56517567,2064.6,2063.8,0.58763162]
[1773332976867,0.56517567,2064.6,2064.0,0.83821162]
[1773332977071,0.00558353,2064.6,2064.1,0.83807162]
[1773332977265,0.00558353,2064.6,2064.3,0.83662162]
[1773332977666,0.56517567,2064.6,2064.1,0.58763162]
[1773332977864,0.56517567,2064.6,2064.1,0.83235162]
[1773332978068,0.00558353,2064.6,2064.2,0.83307162]
[1773332978269,0.00558353,2064.6,2064.3,0.83198162]
[1773332978470,0.56517567,2064.6,2064.3,0.58763162]
[1773332978862,0.56517567,2064.6,2063.7,6.57823]
[1773332979069,0.56517567,2064.6,2064.0,0.58763162]
[1773332979374,0.00558353,2064.6,2064.2,0.83538162]
[1773332979671,0.00558353,2064.6,2064.3,0.83453162]
[1773332979872,0.00558353,2064.6,2064.4,0.58763162]
[1773332981270,0.00558353,2064.6,2063.8,0.58763162]
[1773332981466,0.56517567,2064.6,2063.8,0.58763162]
[1773332981777,0.00558353,2064.6,2064.0,0.58763162]
[1773332981972,0.00558353,2064.6,2064.0,0.83234162]
[1773332982170,0.00558353,2064.6,2064.2,0.83497162]
[1773332982373,0.55959214,2065.1,2064.5,0.56108708]
[1773332982677,0.56019929,2065.0,2064.0,0.56108708]
[1773332983471,0.24212,2064.7,2063.8,0.56108708]
[1773332983678,0.56019929,2064.1,2063.6,0.56713956]
[1773332983977,0.56019929,2064.1,2063.4,0.56108708]
[1773332984374,0.24219,2064.2,2063.0,0.58308708]
[1773332984375,0.56019929,2063.9,2063.0,0.58308708]
[1773332984571,0.56019929,2063.7,2063.0,0.58308708]
[1773332984767,0.56019929,2063.7,2063.0,0.58758264]
[1773332985675,0.56019929,2064.2,2063.0,0.58758264]
[1773332985977,0.56019929,2064.1,2063.0,0.58758264]
[1773332991783,0.54956169,2063.9,2063.0,0.58758264]
[1773332992081,0.24221,2064.0,2063.0,0.02649556]
[1773332992082,0.54956169,2063.7,2063.0,0.02649556]
[1773332993182,0.54956169,2063.7,2063.0,0.62049868]
[1773332994380,0.54956169,2063.7,2063.0,0.02649556]
[1773332996083,0.54956169,2063.7,2063.0,0.62049868]
[1773332997286,0.54956169,2063.7,2063.0,0.02649556]
[1773332997585,0.54956169,2063.5,2062.8,0.022]
[1773332997889,0.54956169,2063.5,2062.8,0.61600312]
[1773332998379,0.54956169,2063.5,2062.8,0.022]
[1773332998580,0.55309111,2063.5,2062.8,0.02704157]
[1773332999384,0.55309111,2063.5,2062.8,0.62104469]
[1773332999783,0.54956169,2063.9,2062.8,0.62104469]
[1773333000287,3.3644914,2063.7,2062.8,0.02704157]
[1773333000481,0.54956169,2063.5,2062.9,0.59400312]
[1773333000684,0.54956169,2064.0,2062.9,0.59400312]
[1773333000883,0.54956169,2063.9,2062.9,0.59400312]
[1773333001082,6.34125558,2064.0,2062.8,0.02704157]
[1773333001083,0.54956169,2063.5,2062.8,0.02704157]
[1773333001588,0.54956169,2063.3,2062.8,0.02704157]
[1773333002088,0.54956169,2062.7,2062.0,0.61600312]
[1773333002291,0.54956169,2062.5,2061.8,0.022]
[1773333002588,0.54956169,2062.8,2061.8,0.61600312]
[1773333003082,0.55448866,2062.8,2061.8,0.62106774]
[1773333003287,0.00492697,2062.8,2062.0,0.59400312]
[1773333003486,0.54956169,2063.2,2062.0,0.59400312]
[1773333004485,0.54956169,2063.2,2062.3,0.59400312]
[1773333004686,0.55379059,2063.2,2062.3,0.59400312]
[1773333005693,0.54956169,2063.0,2061.9,0.59400312]
[1773333006387,0.55379059,2063.2,2062.4,0.59400312]
[1773333007991,0.0042289,2063.2,2062.4,0.59400312]
[1773333008287,0.0042289,2063.2,2062.4,0.83836312]
[1773333008594,0.0042289,2063.2,2062.6,0.84251312]
[1773333008787,0.0042289,2063.2,2062.8,0.84639312]
[1773333008989,0.0042289,2063.2,2062.9,0.84741312]
[1773333009485,0.54956169,2064.1,2063.3,0.59400312]
[1773333010091,0.54956169,2064.1,2062.3,6.338]
[1773333010092,0.54956169,2063.9,2062.8,0.59400312]
[1773333010390,0.54956169,2063.7,2062.4,0.59400312]
[1773333010591,0.54956169,2063.7,2062.8,0.00508754]
[1773333011988,0.54956169,2063.7,2062.8,0.59909066]
[1773333012795,0.00384651,2063.9,2062.8,0.59909066]
[1773333012989,0.5534082,2063.9,2062.8,0.59909066]
[1773333013690,0.5534082,2063.9,2062.9,0.59400312]
[1773333013891,0.54956169,2064.7,2063.7,0.59400312]
[1773333014091,0.54956169,2064.9,2064.0,0.59400312]
[1773333014794,0.5550787,2064.9,2064.0,0.59400312]
[1773333015294,0.5550787,2064.9,2063.7,0.59400312]
[1773333015688,0.54956169,2064.7,2063.7,0.59400312]
[1773333016098,0.54956169,2064.5,2063.5,0.59400312]
[1773333016793,0.54956169,2064.5,2063.0,9.15192971]
[1773333016794,0.54956169,2064.7,2063.7,0.59400312]
[1773333017588,0.5550787,2064.9,2064.0,0.59400312]
[1773333017891,0.5550787,2064.9,2063.8,0.59400312]
[1773333017892,0.54956169,2064.7,2063.8,0.59400312]
[1773333018484,0.54956169,2064.7,2063.3,6.337]
[1773333018692,0.54956169,2064.7,2063.4,0.59400312]
[1773333019288,0.54956169,2064.5,2063.1,0.59400312]
[1773333019491,0.54956169,2064.2,2063.1,0.59400312]
[1773333020087,0.54956169,2063.9,2062.9,0.59400312]
[1773333020586,0.56309272,2064.1,2063.0,0.55249208]
[1773333021093,0.56309272,2064.4,2063.3,0.55249208]
[1773333022292,6.34151701,2064.9,2063.3,0.55249208]
[1773333022293,0.56309272,2064.6,2063.3,0.55249208]
[1773333022690,0.56309272,2064.6,2063.4,0.24228]
[1773333022891,0.56309272,2064.4,2063.5,0.55249208]
[1773333023093,0.56309272,2064.2,2063.1,0.55249208]
[1773333023397,0.56309272,2064.7,2063.6,0.55249208]
[1773333023999,0.56860973,2064.9,2063.6,0.55249208]
[1773333024193,0.00551701,2064.9,2063.9,0.55249208]
[1773333024399,0.00551701,2064.9,2064.1,0.55249208]
[1773333024597,0.56860973,2064.9,2064.1,0.55249208]
[1773333024794,0.56309272,2064.8,2063.6,0.55249208]
[1773333027500,0.56309272,2064.6,2063.6,0.55249208]
[1773333027696,0.56309272,2064.0,2063.4,0.55249208]
[1773333027898,0.56309272,2064.0,2063.2,0.55249208]
[1773333028595,0.56309272,2063.8,2062.9,0.55249208]
[1773333029905,0.56309272,2063.9,2062.9,0.55249208]
[1773333030203,0.56309272,2063.9,2062.8,0.00508754]
[1773333030204,0.57429506,2063.5,2062.8,0.00508754]
[1773333030904,0.57429506,2063.5,2062.8,0.56827657]
[1773333031105,0.57429506,2064.0,2062.8,0.56827657]
[1773333031498,0.24222,2063.9,2062.8,0.56827657]
[1773333031703,0.57429506,2063.8,2062.8,0.56827657]
[1773333033105,0.57429506,2064.0,2062.8,0.56827657]
[1773333033605,0.57429506,2063.9,2062.8,0.56827657]
[1773333033804,0.57429506,2063.7,2062.8,0.56827657]
[1773333034898,0.57429506,2063.3,2062.8,0.00508754]
[1773333035096,0.57429506,2063.3,2062.5,0.56318903]
[1773333035097,0.57429506,2063.1,2062.3,0.56318903]
[1773333035298,0.57429506,2063.1,2061.9,0.56318903]
[1773333035694,0.57429506,2062.9,2061.9,0.56318903]
[1773333036109,0.57429506,2062.9,2061.9,0.56816128]
[1773333037410,0.57429506,2063.2,2062.2,0.56318903]
[1773333037605,0.00558924,2063.3,2062.2,0.56318903]
[1773333038306,0.00558924,2063.3,2062.4,3.37811874]
[1773333038510,0.00558924,2063.3,2062.6,0.56318903]
[1773333039005,0.00558924,2063.3,2062.7,0.56318903]
[1773333039208,0.00558924,2063.3,2062.8,0.56318903]
[1773333039509,0.5798843,2063.3,2062.6,0.56318903]
[1773333039712,0.5798843,2063.3,2062.7,0.56318903]
[1773333039902,0.5798843,2063.3,2062.5,0.56318903]
[1773333040107,0.5798843,2063.3,2062.6,0.56318903]
[1773333040306,0.00558924,2063.3,2062.6,0.80563903]
[1773333040506,0.57429506,2064.0,2063.3,0.80262979]
[1773333040712,3.98818525,2064.4,2063.4,0.56318903]
[1773333040713,0.53628214,2064.1,2063.4,0.56318903]
[1773333040916,0.53628214,2064.1,2062.8,0.55794901]
[1773333041514,0.54024947,2064.1,2062.8,0.56206333]
[1773333042911,0.54024947,2064.1,2063.0,2.81492971]
[1773333043112,0.54024947,2064.1,2063.1,0.55794901]
[1773333043714,0.53628214,2063.9,2063.1,0.55794901]
[1773333045517,0.00396733,2064.1,2063.1,0.55794901]
[1773333045718,0.54024947,2064.1,2063.1,0.55794901]
[1773333046322,0.00396733,2064.1,2063.1,0.55794901]
[1773333047021,0.00396733,2064.1,2063.3,0.55794901]
[1773333047218,0.53628214,2064.5,2063.3,0.55794901]
[1773333047521,0.53628214,2064.9,2063.3,0.55794901]
[1773333048222,0.54216043,2064.9,2063.3,0.55794901]
[1773333048422,0.53628214,2064.7,2063.3,0.55794901]
[1773333048724,0.53628214,2064.5,2063.3,0.55794901]
[1773333049422,0.53628214,2064.3,2063.3,0.55794901]
[1773333051722,0.24216,2064.4,2063.3,0.55794901]
[1773333052032,0.82366155,2064.4,2063.3,0.55794901]
[1773333052526,0.58150155,2064.8,2063.3,0.55794901]
[1773333053330,0.58150155,2064.6,2063.5,0.57278035]
[1773333054829,0.58150155,2064.8,2063.6,0.24225]
[1773333055126,0.00587829,2064.9,2063.7,0.57278035]
[1773333055325,0.00587829,2064.9,2063.9,0.57278035]
[1773333055530,0.58737984,2064.9,2063.9,0.57278035]
[1773333055826,0.00587829,2064.9,2064.2,0.81827035]
[1773333056031,0.00587829,2064.9,2064.3,0.81912035]
[1773333056225,0.00587829,2064.9,2064.5,0.81771035]
[1773333056425,0.00587829,2064.9,2064.5,0.81672035]
[1773333056624,0.00587829,2064.9,2064.5,0.57278035]
[1773333057131,0.58737984,2064.9,2064.3,0.57764584]
[1773333058332,0.00587829,2064.9,2064.3,0.57764584]
[1773333058938,0.58737984,2064.9,2064.3,0.57764584]
[1773333060630,0.58150155,2064.4,2063.7,0.57278035]
[1773333060835,0.58150155,2064.4,2063.5,0.57278035]
[1773333061441,0.58150155,2064.8,2063.7,0.57278035]
[1773333061639,0.58150155,2064.6,2063.7,0.57801582]
[1773333063337,0.58150155,2064.4,2063.7,0.00523547]
[1773333063638,0.58150155,2064.4,2063.7,0.57801582]
[1773333064035,0.58150155,2064.8,2063.7,0.57801582]
[1773333066641,0.58150155,2064.6,2063.7,0.57801582]
[1773333067740,0.58150155,2064.4,2063.7,0.57801582]
[1773333069443,0.58150155,2064.6,2063.7,0.57801582]
[1773333070452,0.58150155,2064.4,2063.7,0.00523547]
[1773333070836,0.58150155,2064.4,2063.7,0.57801582]
[1773333071340,0.58150155,2064.2,2063.7,0.00523547]
[1773333072049,0.58150155,2064.0,2063.3,0.57278035]
[1773333072544,0.58150155,2064.2,2063.3,0.57278035]
[1773333073148,0.58150155,2064.2,2063.3,0.57850315]
[1773333074045,0.58150155,2064.4,2063.4,0.57278035]
[1773333075649,0.58150155,2064.4,2063.6,0.57278035]
[1773333076448,0.58150155,2064.6,2063.6,0.57278035]
[1773333077547,0.58150155,2064.4,2063.6,0.57278035]
[1773333078949,0.58150155,2064.2,2063.4,0.57278035]
[1773333079449,0.58150155,2064.0,2063.4,0.57278035]
[1773333080250,0.58150155,2064.4,2063.4,0.57278035]
[1773333081852,0.58512632,2064.6,2063.6,0.55919566]
[1773333082350,0.00587829,2064.9,2063.6,0.55919566]
[1773333082655,0.58512632,2064.8,2063.6,0.55919566]
[1773333083157,0.58512632,2064.4,2063.6,0.55919566]
[1773333083462,0.58512632,2064.2,2063.4,0.55919566]
[1773333085761,0.58512632,2064.4,2063.4,0.55919566]
[1773333088055,0.58512632,2064.6,2063.6,0.55919566]
[1773333088358,0.58512632,2064.8,2063.7,0.55919566]
[1773333088557,0.58512632,2064.8,2063.9,0.55919566]
[1773333090261,3.98818525,2065.4,2064.1,0.55919566]
[1773333090456,0.58512632,2065.3,2064.1,0.55919566]
[1773333090954,0.58512632,2065.3,2064.1,0.80171566]
[1773333091158,0.58512632,2065.3,2064.4,0.55919566]
[1773333091354,0.00582048,2065.3,2064.9,0.55919566]
[1773333091562,0.00582048,2065.3,2064.9,0.56454119]
[1773333091856,0.58512632,2065.8,2064.9,0.56454119]
[1773333092163,0.58512632,2066.1,2064.9,0.56454119]
[1773333092659,0.5913697,2066.1,2064.9,0.56454119]
[1773333092859,0.5913697,2066.1,2065.0,0.55919566]
[1773333093057,0.00624338,2066.1,2065.0,0.55919566]
[1773333093256,0.5913697,2066.1,2065.0,0.55919566]
[1773333096165,0.00624338,2066.1,2065.0,0.55919566]
[1773333096358,0.00624338,2066.1,2065.1,0.55919566]
[1773333096866,0.5913697,2066.1,2065.1,0.55919566]
[1773333097759,0.00624338,2066.1,2065.1,0.55919566]
[1773333098157,0.58512632,2066.8,2065.4,0.55919566]
[1773333098361,0.58512632,2066.8,2065.6,0.55919566]
[1773333099057,0.5902746,2066.8,2065.6,0.55919566]
[1773333099264,0.00514828,2066.8,2065.6,0.55919566]
[1773333100063,0.5902746,2066.8,2065.6,0.55919566]
[1773333100765,0.24189,2066.7,2065.6,0.55919566]
[1773333100971,0.58512632,2066.6,2065.6,0.55919566]
[1773333101367,0.00514828,2066.8,2065.6,0.55919566]
[1773333101672,0.5902746,2066.8,2065.6,0.55919566]
[1773333102672,0.57091036,2066.4,2065.5,6.337]
[1773333102866,0.57091036,2066.2,2065.5,6.337]
[1773333103171,0.57091036,2066.0,2065.2,0.57056124]
[1773333103367,0.57091036,2066.0,2065.1,6.337]
[1773333104168,0.57091036,2066.0,2065.1,6.90756124]
[1773333104473,0.57091036,2066.5,2065.2,0.57056124]
[1773333104770,0.57091036,2066.1,2065.2,0.57056124]
[1773333105373,0.57091036,2065.9,2065.2,0.57056124]
[1773333107269,0.57091036,2066.4,2065.2,0.57056124]
[1773333107476,0.57091036,2066.1,2065.1,6.337]
[1773333108473,0.57091036,2066.1,2064.8,0.57056124]
[1773333108474,0.57091036,2065.6,2064.6,6.338]
[1773333108672,0.57091036,2065.6,2064.9,0.57590677]
[1773333108873,0.57091036,2066.1,2064.9,0.57590677]
[1773333109078,3.38277702,2065.9,2064.9,0.00534553]
[1773333109372,0.57091036,2065.7,2064.9,0.00534553]
[1773333109573,0.57091036,2065.5,2064.5,0.57056124]
[1773333109967,0.57091036,2065.3,2064.3,6.90856124]
[1773333110570,0.58795588,2065.1,2064.3,6.91434283]
[1773333110872,0.58795588,2065.1,2064.4,0.57674789]
[1773333111568,0.58795588,2065.1,2064.3,6.34378159]
[1773333111970,0.83009588,2064.6,2063.6,6.91474789]
[1773333112178,0.58795588,2064.5,2063.7,0.57674789]
[1773333112680,2.81186666,2064.7,2063.6,6.338]
[1773333112681,0.58795588,2064.3,2063.6,6.338]
[1773333112881,0.58795588,2064.3,2063.6,6.34257124]
[1773333113475,0.58795588,2064.3,2063.6,6.91931913]
[1773333113876,0.58795588,2064.3,2063.7,0.57674789]
[1773333114573,0.58795588,2064.3,2063.6,6.34257124]
[1773333114779,0.58795588,2064.3,2063.7,0.57674789]
[1773333115180,0.58795588,2064.3,2063.6,6.34257124]
[1773333115374,0.58795588,2064.3,2063.6,6.91931913]
[1773333115781,0.58795588,2064.3,2063.7,0.57674789]
[1773333115981,0.58795588,2064.8,2063.7,0.57674789]
[1773333117184,0.58795588,2064.8,2063.9,0.57674789]
[1773333120379,0.58795588,2065.2,2064.2,0.57674789]
[1773333120579,0.58795588,2065.2,2064.3,0.57674789]
[1773333121081,0.00480422,2065.3,2064.5,0.57674789]
[1773333121477,0.58795588,2065.1,2064.5,0.57674789]
[1773333121672,0.58795588,2065.1,2064.2,6.34]
[1773333121877,0.58795588,2065.1,2064.3,0.57674789]
[1773333122084,0.58795588,2064.9,2063.9,0.57674789]
[1773333122983,0.58795588,2064.7,2063.8,6.34]
[1773333124179,0.58795588,2064.5,2063.8,6.91674789]
[1773333124381,0.58795588,2064.5,2063.9,0.57674789]
[1773333125175,0.58795588,2064.9,2063.9,0.57674789]
[1773333125579,0.58795588,2064.7,2063.8,6.34]
[1773333126178,0.58795588,2064.7,2063.8,6.91674789]
[1773333126577,0.58795588,2064.5,2063.9,0.57674789]
[1773333126884,0.58795588,2064.7,2063.9,0.57674789]
[1773333127181,0.58795588,2064.6,2063.8,6.34]
[1773333127380,0.58795588,2064.6,2063.8,6.91674789]
[1773333128081,6.341,2064.9,2063.9,0.57674789]
[1773333128291,0.58795588,2064.9,2063.9,0.57674789]
[1773333129581,0.58795588,2064.7,2063.8,6.91674789]
[1773333129785,0.58795588,2064.7,2063.9,0.57674789]
[1773333130181,0.58795588,2064.5,2063.9,0.57674789]
[1773333131182,0.58795588,2064.5,2063.8,6.34]
[1773333132082,0.24214,2064.6,2063.3,6.34]
[1773333132083,0.58795588,2064.3,2063.3,6.34]
[1773333132286,0.58795588,2063.8,2063.1,0.57674789]
[1773333132481,0.58795588,2063.4,2062.6,0.57674789]
[1773333132677,0.58795588,2063.4,2062.5,6.34]
[1773333132678,0.58795588,2063.4,2062.5,6.91674789]
[1773333132878,0.58795588,2063.4,2061.8,0.022]
[1773333132879,0.58795588,2063.2,2062.1,0.57674789]
[1773333133083,0.00351421,2063.2,2062.1,0.58065663]
[1773333133283,0.00351421,2063.2,2062.3,0.57674789]
[1773333133688,0.58795588,2064.0,2062.6,0.57674789]
[1773333133879,0.58795588,2063.8,2062.8,0.57674789]
[1773333134283,0.58795588,2064.2,2062.8,0.57674789]
[1773333134484,0.58795588,2064.1,2062.9,0.57674789]
[1773333134887,0.59297094,2064.1,2062.9,0.57674789]
[1773333135686,0.00501506,2064.1,2063.2,0.57674789]
[1773333135886,0.00501506,2064.1,2063.1,2.81186666]
[1773333135887,0.00501506,2064.1,2063.4,0.57674789]
[1773333136292,0.24216,2064.4,2063.4,0.57674789]
[1773333136692,0.58795588,2064.5,2063.4,0.57674789]
[1773333136892,0.58795588,2064.7,2063.5,0.57674789]
[1773333137191,0.58795588,2064.7,2063.8,0.57674789]
[1773333137394,0.59143522,2064.7,2063.8,0.58239458]
[1773333137882,0.00347934,2064.7,2063.9,0.57674789]
[1773333138592,0.00347934,2064.7,2063.9,0.81917789]
[1773333138793,0.00347934,2064.7,2063.9,0.57674789]
[1773333139091,0.59143522,2064.7,2063.9,0.57674789]
[1773333139891,0.58795588,2065.4,2063.9,0.57674789]
[1773333140092,0.58795588,2065.4,2064.3,0.57674789]
[1773333140389,0.58795588,2065.4,2063.8,6.34664669]
[1773333140390,0.550747,2066.0,2064.6,0.53756458]
[1773333140584,0.550747,2066.0,2064.8,0.53756458]
[1773333140791,0.550747,2065.8,2064.8,0.53756458]
[1773333141089,0.550747,2065.8,2064.7,6.341]
[1773333141090,0.550747,2065.4,2064.7,6.341]
[1773333141493,0.550747,2065.4,2064.7,0.53756458]
[1773333142495,0.550747,2065.2,2064.4,6.87756458]
[1773333143290,0.550747,2065.2,2064.5,0.53756458]
[1773333143494,0.550747,2065.7,2064.5,0.53756458]
[1773333143694,0.550747,2065.5,2064.5,0.53756458]
[1773333145301,0.550747,2065.3,2064.5,0.53756458]
[1773333145508,0.550747,2065.1,2064.5,0.53756458]
[1773333145699,0.550747,2064.7,2064.1,0.53756458]
[1773333145902,0.550747,2064.9,2064.1,0.53756458]
[1773333146203,0.550747,2065.1,2064.1,0.53756458]
[1773333147296,0.550747,2064.9,2064.1,0.53756458]
[1773333147798,0.550747,2064.9,2064.0,6.34]
[1773333147993,0.550747,2064.9,2064.0,6.87756458]
[1773333148202,0.24209,2065.0,2063.8,0.54321127]
[1773333148203,0.550747,2064.7,2063.8,0.54321127]
[1773333149499,0.24214,2064.6,2063.8,0.54321127]
[1773333149705,0.61297789,2064.6,2063.8,0.54321127]
[1773333149902,5.9548,2065.3,2063.8,0.54321127]
[1773333149903,0.37083789,2064.8,2063.8,0.54321127]
[1773333150102,0.37083789,2065.0,2063.8,0.54321127]
[1773333150306,0.24208,2065.1,2063.8,0.54321127]
[1773333150601,0.61291789,2065.1,2063.8,0.54321127]
[1773333150803,0.61291789,2065.1,2064.0,0.53756458]
[1773333151005,0.24208,2065.1,2064.2,0.53756458]
[1773333151199,0.60827992,2065.1,2064.2,0.53756458]
[1773333151600,0.36619992,2065.3,2064.2,0.53756458]
[1773333154105,0.24207,2065.2,2064.2,0.53756458]
[1773333154403,0.36694639,2065.1,2064.2,0.53756458]
[1773333154606,0.24209,2065.0,2064.2,0.53756458]
[1773333154807,0.60903639,2065.0,2064.2,0.53756458]
[1773333155301,0.60903639,2065.0,2064.1,6.34]
[1773333155302,0.36715376,2064.7,2064.1,6.34]
[1773333155507,0.36715376,2064.7,2064.0,0.53756458]
[1773333156207,0.24214,2064.6,2064.0,0.53756458]
[1773333156407,0.36715376,2064.5,2063.8,0.54321127]
[1773333156908,0.24214,2064.6,2063.8,0.54321127]
[1773333158015,9.15186666,2065.0,2063.8,0.54321127]
[1773333158016,0.37226811,2065.0,2063.8,0.54321127]
[1773333158506,0.61435811,2065.1,2063.8,0.54321127]
[1773333159510,0.24209,2065.1,2064.1,0.53756458]
[1773333160504,0.24209,2065.1,2064.3,0.53756458]
[1773333160712,0.37077014,2065.3,2064.3,0.53756458]
[1773333161007,6.58203,2065.6,2064.3,0.53756458]
[1773333161008,0.61281258,2065.6,2064.4,0.53756458]
[1773333161503,0.37556419,2065.8,2064.4,0.53756458]
[1773333162313,0.37556419,2065.8,2064.6,0.53756458]
[1773333162612,0.37556419,2065.8,2064.8,0.57226819]
[1773333163512,0.00478161,2065.8,2064.8,0.57226819]
[1773333164313,0.37497752,2065.8,2064.8,0.57226819]
[1773333164611,0.37019591,2065.6,2064.8,0.57226819]
[1773333164811,0.24201,2065.7,2064.8,0.57226819]
[1773333165312,0.36632489,2065.6,2064.8,0.57226819]
[1773333165910,0.24201,2065.7,2064.8,0.57226819]
[1773333166108,0.00478161,2065.8,2064.8,0.57226819]
[1773333167206,0.35628355,2065.7,2064.8,0.57226819]
[1773333167907,0.24678161,2065.8,2064.8,0.57226819]
[1773333169207,0.00478161,2065.8,2064.8,0.57226819]
[1773333170217,0.36094869,2065.8,2064.8,0.57226819]
[1773333170407,0.35620355,2065.6,2064.8,0.57226819]
[1773333172118,0.24201,2065.7,2064.8,0.57226819]
[1773333172317,0.00478161,2065.8,2064.8,0.57226819]